bitfinex/quotes_SOLUSD_20240809
["timestamp","ask_amount","ask_price","bid_price","bid_amount"]
[1723188594277,26.63,159.17,159.15,1.25659594]
[1723188594674,15.5169,159.22,159.15,1.25659594]
[1723188595354,26.63,159.18,159.17,15.7059]
[1723188595560,15.5169,159.22,159.17,15.7059]
[1723188595772,21.7978,159.22,159.17,21.9884]
[1723188596653,26.63,159.19,159.17,21.9884]
[1723188597782,7.1076147,159.25,159.17,15.7059]
[1723188597981,26.63,159.21,159.19,6.2814]
[1723188598185,6.28,159.24,159.19,6.2814]
[1723188598389,6.28,159.24,159.18,6.282]
[1723188598554,6.2803,159.23,159.18,6.282]
[1723188599471,7.1076147,159.25,159.2,6.2813]
[1723188599672,26.63,159.21,159.2,6.2813]
[1723188600278,26.63,159.21,159.17,15.7059]
[1723188600454,26.63,159.21,159.2,6.2814]
[1723188600657,26.63,159.21,159.19,21.9853]
[1723188600880,6.2798,159.24,159.19,21.9852]
[1723188601080,7.1077147,159.25,159.2,6.2813]
[1723188601258,6.2801,159.24,159.19,21.9853]
[1723188601459,7.1076147,159.25,159.2,6.2813]
[1723188601658,0.8282147,159.25,159.21,6.281]
[1723188602064,7.1077147,159.25,159.2,6.2813]
[1723188602472,6.2798,159.24,159.2,6.2813]
[1723188602670,6.2798,159.24,159.19,21.9853]
[1723188602877,26.63,159.2,159.19,21.9854]
[1723188603691,26.63,159.2,159.19,15.7036]
[1723188603996,26.63,159.2,159.19,21.9854]
[1723188606175,26.63,159.21,159.2,6.281]
[1723188608069,26.63,159.21,159.2,7.53711748]
[1723188608293,26.63,159.21,159.2,6.281]
[1723188609671,0.8282147,159.25,159.2,6.281]
[1723188609973,0.8282147,159.25,159.21,6.2809]
[1723188610768,7.1076147,159.25,159.21,6.2809]
[1723188610966,18.21,159.22,159.19,15.7036]
[1723188611183,18.21,159.2,159.19,15.7036]
[1723188611591,18.21,159.2,159.16,6.2828]
[1723188612108,72.84,159.2,159.17,6.2825]
[1723188612292,18.21,159.18,159.17,6.2825]
[1723188612603,15.455,159.21,159.15,15.7079]
[1723188612898,15.455,159.21,159.19,6.2817]
[1723188613104,15.455,159.21,159.17,21.988]
[1723188613397,18.21,159.18,159.17,21.9883]
[1723188613572,18.21,159.18,159.12,6.2308]
[1723188613777,72.84,159.2,159.15,6.2833]
[1723188614082,72.84,159.2,159.17,6.2824]
[1723188614287,72.84,159.2,159.16,21.9897]
[1723188614489,18.21,159.17,159.16,15.7068]
[1723188615592,18.21,159.17,159.13,15.71]
[1723188615798,72.84,159.2,159.13,15.71]
[1723188615985,18.21,159.14,159.13,21.9941]
[1723188617393,72.84,159.2,159.13,21.9941]
[1723188617601,18.21,159.16,159.15,6.2833]
[1723188617782,72.84,159.2,159.16,6.2826]
[1723188618103,18.21,159.17,159.16,6.2826]
[1723188618280,18.21,159.17,159.15,15.7077]
[1723188618478,18.21,159.16,159.15,15.7077]
[1723188618888,15.455,159.21,159.15,15.7077]
[1723188619090,15.455,159.21,159.16,1.25636333]
[1723188619091,18.21,159.17,159.16,1.25636333]
[1723188619324,18.21,159.17,159.15,15.7077]
[1723188619477,72.84,159.2,159.16,6.2829]
[1723188619980,18.21,159.17,159.15,21.991]
[1723188620181,79.1214,159.2,159.15,21.991]
[1723188620404,6.2818,159.19,159.15,15.7077]
[1723188620572,18.21,159.16,159.15,15.7077]
[1723188621381,18.21,159.16,159.15,21.991]
[1723188622593,18.21,159.16,159.15,15.7077]
[1723188623193,6.2819,159.19,159.15,15.7077]
[1723188623890,6.2815,159.2,159.15,21.991]
[1723188624220,18.21,159.16,159.15,21.991]
[1723188624615,18.21,159.16,159.12,31.4221]
[1723188624616,18.21,159.16,159.12,47.133]
[1723188624914,6.2822,159.18,159.13,6.2841]
[1723188626815,18.21,159.14,159.1,6.285]
[1723188627021,6.3313,159.19,159.09,15.7141]
[1723188627022,18.21,159.11,159.09,15.7141]
[1723188627193,18.21,159.1,159.09,15.7141]
[1723188627396,18.21,159.11,159.1,6.2849]
[1723188628894,18.21,159.11,159.1,6.2853]
[1723188630102,16.2836,159.15,159.11,6.2848]
[1723188630416,16.2836,159.15,159.12,6.2845]
[1723188630619,16.2836,159.15,159.11,21.9968]
[1723188630822,18.21,159.12,159.11,21.9968]
[1723188632420,18.21,159.12,159.11,15.7119]
[1723188632718,18.21,159.12,159.08,15.7148]
[1723188632901,18.21,159.1,159.08,15.7148]
[1723188633107,18.21,159.1,159.09,6.2856]
[1723188634311,18.21,159.1,159.05,15.7179]
[1723188634623,18.21,159.08,159.05,15.7179]
[1723188634823,18.21,159.08,159.07,6.2865]
[1723188635723,18.21,159.08,159.05,15.7179]
[1723188635929,72.84,159.12,159.05,22.0052]
[1723188635930,18.21,159.06,159.05,22.0052]
[1723188637321,18.21,159.06,159.04,6.2876]
[1723188637513,18.21,159.05,159.04,6.2876]
[1723188638020,18.21,159.05,159.02,15.7208]
[1723188638211,18.21,159.03,159.02,15.7208]
[1723188639010,18.21,159.03,159.02,22.0093]
[1723188639226,18.21,159.03,158.99,15.7237]
[1723188639433,18.21,159.0,158.99,22.0134]
[1723188640030,6.2216,159.07,159.0,6.2893]
[1723188640031,18.21,159.01,159.0,6.2893]
[1723188641098,20.0,159.06,159.02,6.2883]
[1723188641339,12.5084,159.07,159.02,6.2883]
[1723188641918,12.5084,159.07,159.03,6.288]
[1723188641919,6.2216,159.07,159.03,6.288]
[1723188642238,18.21,159.04,159.03,6.288]
[1723188643312,18.21,159.04,159.02,6.2884]
[1723188643516,6.2216,159.07,159.01,15.7216]
[1723188644133,26.2869,159.06,159.01,22.0101]
[1723188644627,18.21,159.02,159.01,15.7216]
[1723188644838,18.21,159.02,158.99,6.2896]
[1723188645021,72.84,159.04,158.99,6.2896]
[1723188645217,18.21,159.01,159.0,6.2891]
[1723188646228,18.21,159.01,158.99,6.2896]
[1723188646406,79.1278,159.04,158.99,6.2896]
[1723188646407,18.21,159.0,158.99,6.2896]
[1723188646607,18.21,159.0,158.98,15.7251]
[1723188646807,18.21,158.99,158.98,22.0151]
[1723188648137,18.21,158.99,158.95,15.7279]
[1723188648447,12.3829,159.01,158.95,15.7279]
[1723188648825,18.21,158.96,158.95,15.7279]
[1723188649321,18.21,158.96,158.95,23.27731452]
[1723188649508,6.0939,159.01,158.96,6.2908]
[1723188649834,6.0939,159.01,158.97,6.2902]
[1723188650040,15.1959,159.03,158.97,15.7254]
[1723188650228,18.21,158.99,158.98,6.29]
[1723188651224,18.21,158.99,158.97,15.7254]
[1723188651225,15.1959,159.03,158.99,15.7242]
[1723188651409,18.21,159.02,159.01,6.2886]
[1723188651611,22.6641,159.07,159.01,6.2886]
[1723188651834,18.21,159.02,159.01,6.2886]
[1723188652632,18.21,159.02,159.0,6.2892]
[1723188652832,18.21,159.02,159.01,6.2889]
[1723188653046,18.21,159.02,158.99,15.7242]
[1723188653245,18.21,159.0,158.99,22.0135]
[1723188654239,18.21,159.0,158.96,15.7268]
[1723188654425,18.21,158.97,158.96,22.0176]
[1723188654625,18.21,158.97,158.96,15.7268]
[1723188655039,58.6672,158.97,158.85,31.4755]
[1723188655240,6.2915,158.95,158.89,6.2935]
[1723188655624,6.292,158.93,158.87,6.2941]
[1723188655953,18.21,158.88,158.87,6.2941]
[1723188656432,18.21,158.88,158.83,37.264]
[1723188656433,22.2472,158.97,158.85,31.4753]
[1723188656776,18.21,158.87,158.83,19.054]
[1723188657131,65.0,158.96,158.79,9.86265249]
[1723188657428,65.0,158.96,158.78,6.4168]
[1723188657429,18.21,158.81,158.8,22.0393]
[1723188657820,26.68,158.82,158.8,22.0393]
[1723188658346,26.68,158.82,158.73,12.5645]
[1723188658347,20.0,158.81,158.69,6.9508147]
[1723188658556,26.68,158.77,158.74,6.2995]
[1723188658728,26.68,158.79,158.69,6.9508147]
[1723188659048,26.68,158.79,158.76,6.2988]
[1723188659230,26.68,158.79,158.75,15.7478]
[1723188659426,26.68,158.79,158.76,6.2986]
[1723188659757,26.68,158.79,158.77,6.2982]
[1723188659926,16.3809,158.78,158.7,15.7522]
[1723188660128,26.68,158.72,158.7,15.7522]
[1723188660356,26.68,158.72,158.69,0.8282147]
[1723188660576,26.68,158.7,158.69,0.8282147]
[1723188661068,32.9811,158.7,158.69,0.8282147]
[1723188661385,52.9811,158.7,158.69,0.8282147]
[1723188662244,26.68,158.7,158.69,0.8282147]
[1723188664470,32.9811,158.7,158.69,0.8282147]
[1723188664679,52.9811,158.7,158.69,0.8282147]
[1723188664859,46.68,158.7,158.69,0.8282147]
[1723188665867,60.6711,158.7,158.69,0.8282147]
[1723188666251,54.37,158.7,158.69,0.8282147]
[1723188667568,60.6711,158.7,158.69,0.8282147]
[1723188667867,54.37,158.7,158.69,0.8282147]
[1723188668455,60.6711,158.7,158.69,0.8282147]
[1723188669253,54.37,158.7,158.69,0.8282147]
[1723188670770,60.6711,158.7,158.69,0.8282147]
[1723188670947,54.37,158.7,158.69,0.8282147]
[1723188675176,9.87819913,158.76,158.69,0.8282147]
[1723188675481,16.3809,158.78,158.69,16.5819147]
[1723188675688,6.2984,158.77,158.71,6.3007]
[1723188675858,34.37,158.74,158.71,6.3007]
[1723188676057,34.37,158.74,158.7,6.3011]
[1723188678269,16.3301,158.82,158.71,46.26001447]
[1723188678487,16.3301,158.82,158.77,6.2983]
[1723188679481,15.7357,158.88,158.79,6.2976]
[1723188679482,6.2952,158.85,158.79,6.2976]
[1723188679694,6.2949,158.86,158.8,6.297]
[1723188679861,6.2957,158.84,158.77,15.7451]
[1723188680061,6.2964,158.82,158.77,15.7451]
[1723188680263,6.2964,158.82,158.74,6.1877]
[1723188680264,34.37,158.81,158.76,6.2987]
[1723188680498,34.37,158.81,158.75,1.25949998]
[1723188680990,34.37,158.81,158.76,15.7463]
[1723188681363,34.37,158.83,158.81,6.2964]
[1723188681563,22.2258,158.87,158.8,15.7422]
[1723188681564,16.2026,158.87,158.8,15.7422]
[1723188681784,6.2937,158.89,158.83,6.2959]
[1723188681977,6.2937,158.89,158.8,15.7422]
[1723188681978,6.2941,158.88,158.82,6.2964]
[1723188682190,6.2944,158.87,158.81,6.2967]
[1723188682769,34.37,158.85,158.8,22.0394]
[1723188682968,34.37,158.83,158.78,6.2979]
[1723188683183,34.37,158.83,158.77,15.7457]
[1723188683184,34.37,158.83,158.77,22.044]
[1723188683393,6.296,158.83,158.77,22.044]
[1723188683596,34.37,158.81,158.78,6.2978]
[1723188683886,34.37,158.81,158.8,6.2972]
[1723188684064,34.37,158.81,158.79,15.7433]
[1723188684065,34.37,158.85,158.79,22.0408]
[1723188684264,34.37,158.83,158.79,15.7433]
[1723188684578,34.37,158.83,158.79,22.0406]
[1723188685386,34.37,158.83,158.8,6.297]
[1723188685587,34.37,158.83,158.81,6.2966]
[1723188685789,26.67,158.84,158.81,15.7412]
[1723188686391,26.67,158.84,158.83,6.296]
[1723188686896,26.67,158.84,158.82,6.2963]
[1723188687264,26.67,158.84,158.81,22.0379]
[1723188687465,26.67,158.82,158.74,6.1877]
[1723188687698,26.67,158.88,158.75,15.7477]
[1723188687699,26.67,158.79,158.75,15.7477]
[1723188687995,26.67,158.88,158.77,15.745]
[1723188688290,26.67,158.8,158.77,15.745]
[1723188688588,26.67,158.8,158.78,6.2979]
[1723188688791,26.67,158.8,158.79,6.2976]
[1723188688994,26.67,158.82,158.77,15.745]
[1723188689173,26.67,158.82,158.79,15.7431]
[1723188689372,26.67,158.82,158.81,6.2968]
[1723188689979,26.67,158.82,158.77,6.2984]
[1723188690188,26.67,158.8,158.77,6.2984]
[1723188690369,26.67,158.8,158.78,15.7447]
[1723188690971,26.67,158.8,158.79,6.2976]
[1723188691271,26.67,158.8,158.78,22.0426]
[1723188691574,23.1853,158.92,158.75,32.75422015]
[1723188691775,23.1853,158.92,158.76,65.0]
[1723188691983,29.4781,158.92,158.85,6.2949]
[1723188692399,6.293,158.91,158.85,6.2949]
[1723188692778,6.293,158.91,158.84,6.2955]
[1723188692978,26.67,158.87,158.84,6.2955]
[1723188693187,26.67,158.87,158.85,6.295]
[1723188693899,29.4778,158.92,158.86,6.2948]
[1723188694097,20.0,158.91,158.86,7.55357612]
[1723188694320,20.0,158.91,158.86,1.25877612]
[1723188694603,26.2929,158.91,158.86,1.25877612]
[1723188694987,26.67,158.89,158.85,15.7381]
[1723188696011,26.67,158.89,158.81,15.7412]
[1723188696012,26.67,158.87,158.81,15.7412]
[1723188696192,26.67,158.87,158.82,51.296]
[1723188696502,26.67,158.87,158.82,45.0]
[1723188696710,26.67,158.87,158.82,51.2964]
[1723188696883,20.0,158.91,158.81,15.7412]
[1723188697083,6.294,158.88,158.81,22.038]
[1723188697317,26.67,158.84,158.81,15.7412]
[1723188697480,26.67,158.84,158.81,22.038]
[1723188697806,26.67,158.84,158.82,6.2963]
[1723188697993,26.67,158.84,158.82,7.55543251]
[1723188698204,26.67,158.84,158.82,6.2963]
[1723188698608,26.67,158.84,158.81,15.7412]
[1723188699908,26.67,158.84,158.79,6.2975]
[1723188700517,26.67,158.82,158.79,6.2975]
[1723188701719,26.67,158.8,158.78,6.2979]
[1723188702025,6.2953,158.85,158.78,6.2979]
[1723188702026,26.67,158.79,158.78,6.2979]
[1723188702226,35.3612,158.87,158.74,6.1877]
[1723188702227,26.67,158.81,158.79,6.2974]
[1723188702406,21.6559,158.87,158.83,6.2957]
[1723188702407,15.3612,158.87,158.83,6.2957]
[1723188703324,21.6557,158.87,158.81,22.0377]
[1723188703533,26.67,158.83,158.81,15.7411]
[1723188703822,26.67,158.82,158.79,6.2975]
[1723188704404,26.67,158.82,158.78,17.0040213]
[1723188704629,26.67,158.83,158.81,6.2968]
[1723188705021,26.67,158.84,158.8,6.2972]
[1723188705230,26.67,158.83,158.78,15.7447]
[1723188706538,26.67,158.83,158.79,6.2976]
[1723188707541,26.67,158.81,158.78,15.7447]
[1723188707728,26.67,158.81,158.78,22.0425]
[1723188709627,26.67,158.83,158.78,15.7447]
[1723188709828,6.663,158.85,158.74,6.1877]
[1723188709829,26.67,158.85,158.84,6.2956]
[1723188710027,42.0312,158.87,158.8,1.25911632]
[1723188710219,26.67,158.88,158.84,6.2952]
[1723188710419,26.67,158.9,158.87,6.2943]
[1723188710651,15.762,158.91,158.88,6.294]
[1723188710828,42.432,158.91,158.87,6.2944]
[1723188711157,26.67,158.9,158.86,15.7364]
[1723188711366,42.432,158.91,158.88,6.294]
[1723188711817,15.762,158.91,158.88,16.99305432]
[1723188712255,26.67,158.94,158.88,16.99305432]
[1723188712544,26.67,158.93,158.88,15.7344]
[1723188712726,26.67,158.93,158.9,6.2931]
[1723188713131,26.67,158.93,158.89,6.2936]
[1723188713645,26.67,158.91,158.85,15.7381]
[1723188713850,41.8909,158.96,158.85,15.7381]
[1723188713851,26.67,158.89,158.85,15.7381]
[1723188714030,26.67,158.89,158.85,22.033]
[1723188714231,26.67,158.9,158.85,15.7381]
[1723188714434,26.67,158.9,158.87,6.2944]
[1723188715327,26.67,158.89,158.85,15.7381]
[1723188715844,26.67,158.89,158.86,6.2947]
[1723188716531,26.67,158.89,158.87,6.2944]
[1723188716730,26.67,158.9,158.87,6.2944]
[1723188719751,26.67,158.88,158.83,6.2957]
[1723188719957,26.67,158.86,158.83,6.2957]
[1723188720328,26.67,158.86,158.85,6.2952]
[1723188720530,26.67,158.87,158.83,15.7392]
[1723188720843,26.67,158.88,158.83,15.7392]
[1723188721040,45.0,158.95,158.8,58.1545]
[1723188721041,26.67,158.9,158.85,15.7374]
[1723188721754,26.67,158.91,158.85,15.7374]
[1723188722061,6.2913,158.95,158.89,6.2935]
[1723188722352,26.67,158.95,158.9,1.25836767]
[1723188722536,41.8909,158.96,158.9,1.25836767]
[1723188722863,41.8909,158.96,158.89,45.0]
[1723188723147,26.67,158.95,158.9,1.25833471]
[1723188723350,41.8909,158.96,158.92,6.2924]
[1723188723652,26.67,158.96,158.92,1.25832307]
[1723188723951,26.67,158.96,158.91,22.0241]
[1723188724158,26.67,158.96,158.92,6.2923]
[1723188724464,26.67,158.95,158.91,22.0238]
[1723188724829,26.67,158.95,158.92,6.2923]
[1723188725143,26.67,158.98,158.93,16.98781779]
[1723188725356,26.67,158.98,158.95,6.2909]
[1723188725524,26.67,158.98,158.93,16.98781779]
[1723188725525,26.67,158.98,158.96,7.5487701]
[1723188725731,6.2466,159.01,158.96,22.0179]
[1723188725732,26.67,159.01,158.96,22.0179]
[1723188726538,26.67,159.01,158.97,7.54837557]
[1723188726730,26.67,159.01,158.96,22.0179]
[1723188727054,26.67,159.0,158.96,22.0179]
[1723188727663,26.67,159.0,158.97,6.2904]
[1723188728241,26.67,159.0,158.96,22.0179]
[1723188728473,21.4391,159.04,158.97,6.2902]
[1723188728767,26.67,159.01,158.97,7.54812525]
[1723188728944,26.67,159.02,158.97,1.25792525]
[1723188729146,41.8214,159.04,159.0,6.2892]
[1723188729336,26.67,159.04,159.01,1.25765226]
[1723188729539,26.67,159.04,159.0,6.2892]
[1723188729856,26.67,159.04,158.99,6.2896]
[1723188730346,26.67,159.04,159.0,6.2892]
[1723188730659,26.67,159.04,159.01,7.54645343]
[1723188730859,26.67,159.04,158.99,6.2894]
[1723188731665,26.67,159.0,158.95,15.728]
[1723188731962,6.3459,159.06,158.95,22.0189]
[1723188731963,26.67,158.99,158.95,22.0189]
[1723188732168,6.2888,159.02,158.95,22.0189]
[1723188732462,26.67,158.99,158.95,15.728]
[1723188732669,26.67,159.0,158.97,6.2904]
[1723188733670,26.67,159.0,158.98,6.29]
[1723188734040,26.67,159.01,158.98,15.7251]
[1723188734244,6.3459,159.06,159.0,6.2893]
[1723188734548,6.3459,159.06,158.98,15.7251]
[1723188734947,6.2877,159.04,158.98,15.7251]
[1723188735152,12.6332,159.06,158.98,22.0148]
[1723188735469,26.67,159.01,158.98,22.0148]
[1723188736156,26.67,158.99,158.95,15.728]
[1723188736741,26.67,158.99,158.97,6.2901]
[1723188736944,26.67,158.99,158.96,6.2908]
[1723188738467,26.67,158.99,158.97,6.2904]
[1723188738643,26.67,158.99,158.95,15.728]
[1723188738844,32.958,159.04,158.97,6.2903]
[1723188739052,22.0633,159.06,158.96,6.2908]
[1723188739360,6.2883,159.03,158.97,6.2904]
[1723188739567,26.67,158.99,158.96,6.2908]
[1723188739777,26.67,159.04,158.95,15.728]
[1723188739778,6.2892,159.01,158.95,15.728]
[1723188740280,6.2893,159.0,158.95,15.728]
[1723188740570,15.936,159.01,158.92,15.7308]
[1723188740773,26.67,158.93,158.91,6.2927]
[1723188741344,26.67,158.93,158.89,15.7338]
[1723188741643,6.2916,158.95,158.89,15.7338]
[1723188741841,6.2917,158.94,158.86,15.737]
[1723188742254,6.2921,158.93,158.87,6.2941]
[1723188742458,26.67,158.9,158.87,6.2941]
[1723188742643,26.67,158.89,158.86,22.0318]
[1723188742846,6.2924,158.92,158.86,15.737]
[1723188743064,22.9536,158.93,158.86,15.737]
[1723188743680,22.9536,158.93,158.86,22.0317]
[1723188743854,26.67,158.88,158.87,6.2944]
[1723188744360,26.67,158.89,158.87,6.2944]
[1723188746173,26.67,158.89,158.86,22.0317]
[1723188746376,26.67,158.88,158.86,22.0317]
[1723188746746,16.6615,158.93,158.87,6.2944]
[1723188746950,20.0,158.92,158.87,6.2944]
[1723188747178,20.0,158.92,158.86,15.737]
[1723188747346,26.67,158.87,158.83,22.0358]
[1723188747555,26.67,158.87,158.84,1.25901354]
[1723188747763,26.67,158.87,158.83,15.7399]
[1723188748053,26.67,158.87,158.85,6.2952]
[1723188748665,26.67,158.88,158.85,6.2952]
[1723188748868,20.0,158.92,158.85,15.7371]
[1723188748869,26.67,158.89,158.85,15.7371]
[1723188749656,26.67,158.89,158.86,6.2948]
[1723188750070,26.67,158.89,158.87,6.2943]
[1723188750769,26.67,158.88,158.85,15.7371]
[1723188751382,20.0,158.92,158.85,15.7371]
[1723188751680,6.2929,158.91,158.85,22.0323]
[1723188752259,26.2925,158.92,158.86,6.2946]
[1723188752479,26.67,158.89,158.86,6.2946]
[1723188752693,26.67,158.89,158.87,6.2943]
[1723188753058,20.0,158.92,158.81,18.6584]
[1723188753263,21.8364,158.97,158.91,6.2927]
[1723188753467,6.2915,158.95,158.89,6.2935]
[1723188753680,6.2919,158.94,158.88,6.294]
[1723188753987,6.292,158.93,158.87,22.03]
[1723188754159,15.5459,158.97,158.87,15.7357]
[1723188754366,15.5459,158.97,158.9,15.733]
[1723188754564,26.67,158.93,158.9,22.0261]
[1723188754781,26.67,158.92,158.9,15.733]
[1723188756278,26.67,158.91,158.87,15.7358]
[1723188756476,46.67,158.96,158.87,15.7358]
[1723188756687,6.2917,158.94,158.87,22.0298]
[1723188757370,26.67,158.9,158.88,6.294]
[1723188757574,26.67,158.91,158.87,15.7358]
[1723188757797,46.67,158.96,158.9,6.2932]
[1723188757959,20.0,158.96,158.84,1.25852232]
[1723188758171,383.3,159.08,158.94,6.2916]
[1723188758172,16.227,159.01,158.94,6.2916]
[1723188758372,16.227,159.01,158.92,15.7309]
[1723188758574,16.227,159.01,158.93,1.25818045]
[1723188758797,16.227,159.01,158.97,6.2901]
[1723188758980,16.227,159.01,158.96,22.0172]
[1723188759174,26.67,158.99,158.96,22.0172]
[1723188760279,26.67,158.99,158.96,15.7264]
[1723188760691,26.67,158.99,158.94,6.2916]
[1723188761671,26.67,158.99,158.95,15.7275]
[1723188761872,26.67,159.01,158.95,15.7275]
[1723188762107,15.4921,159.06,158.95,15.7275]
[1723188762473,6.2885,159.02,158.96,6.2905]
[1723188762796,6.2881,159.03,158.96,6.2905]
[1723188762999,26.67,159.0,158.96,6.2905]
[1723188763380,26.67,159.0,158.97,6.2904]
[1723188763890,26.67,159.0,158.95,15.7275]
[1723188764197,26.67,159.0,158.95,22.0186]
[1723188765102,26.67,158.98,158.95,22.0186]
[1723188765478,26.67,158.98,158.95,15.7275]
[1723188766601,26.67,158.96,158.93,6.2919]
[1723188767309,26.67,158.96,158.92,15.7308]
[1723188767310,26.67,158.96,158.92,22.0232]
[1723188767490,26.67,158.94,158.92,15.7308]
[1723188767685,26.67,158.94,158.91,6.2927]
[1723188768096,26.67,158.92,158.91,6.2927]
[1723188769102,26.67,158.92,158.9,6.2932]
[1723188769284,26.67,158.92,158.91,6.2928]
[1723188769595,26.67,158.94,158.92,6.2923]
[1723188771618,26.67,158.93,158.91,15.7316]
[1723188772319,26.67,158.93,158.91,22.0243]
[1723188774497,26.67,158.92,158.88,22.0287]
[1723188774699,26.67,158.89,158.86,6.2945]
[1723188774892,26.67,158.88,158.86,6.2945]
[1723188775096,26.67,158.89,158.87,6.2944]
[1723188775516,26.67,158.88,158.86,6.2948]
[1723188775824,26.67,158.88,158.85,22.0329]
[1723188776005,26.67,158.87,158.85,22.0329]
[1723188776515,26.67,158.86,158.85,15.7378]
[1723188776901,26.67,158.86,158.85,22.033]
[1723188777304,26.67,158.87,158.85,22.033]
[1723188777800,26.67,158.88,158.86,6.2948]
[1723188778001,26.67,158.88,158.87,6.2944]
[1723188778799,26.67,158.88,158.86,6.2948]
[1723188779114,26.67,158.88,158.87,6.2944]
[1723188779611,26.67,158.9,158.87,6.2944]
[1723188780314,26.67,158.9,158.89,6.2936]
[1723188780626,26.67,158.92,158.88,6.2939]
[1723188781209,26.67,158.9,158.84,15.7387]
[1723188781535,26.67,158.96,158.84,22.034]
[1723188781536,26.67,158.88,158.84,22.034]
[1723188781712,26.67,158.86,158.84,15.7387]
[1723188782504,26.67,158.86,158.84,22.0341]
[1723188782712,6.2933,158.9,158.84,22.0341]
[1723188783021,26.67,158.9,158.89,6.2936]
[1723188783233,26.67,158.9,158.88,15.7345]
[1723188783536,26.67,158.9,158.87,6.2941]
[1723188783734,26.67,158.9,158.85,15.7377]
[1723188783937,26.67,158.88,158.85,15.7377]
[1723188784306,26.67,158.88,158.84,6.2955]
[1723188785214,26.67,158.88,158.85,6.2952]
[1723188785411,26.67,158.88,158.84,6.2955]
[1723188786516,6.2933,158.9,158.84,6.2955]
[1723188786517,26.67,158.86,158.84,6.2955]
[1723188786726,26.67,158.86,158.83,6.296]
[1723188790216,26.67,158.84,158.83,6.296]
[1723188790545,26.67,158.84,158.82,15.7409]
[1723188790707,26.67,158.84,158.8,6.2971]
[1723188790908,26.67,158.82,158.8,6.2971]
[1723188791138,26.67,158.82,158.81,6.2968]
[1723188791954,26.67,158.84,158.82,6.2962]
[1723188792122,26.67,158.84,158.83,6.296]
[1723188793513,26.67,158.84,158.82,6.2963]
[1723188794030,22.24237572,158.94,158.79,31.4872]
[1723188794031,15.8179,158.92,158.8,12.5645]
[1723188794239,42.4879,158.92,158.84,58.1471]
[1723188794446,42.4879,158.92,158.85,45.0]
[1723188794937,42.4879,158.92,158.88,15.7347]
[1723188795238,42.4879,158.92,158.84,58.1471]
[1723188795410,26.67,158.9,158.87,6.2944]
[1723188796253,26.67,158.9,158.88,6.294]
[1723188798124,26.67,158.9,158.89,6.2936]
[1723188798334,26.67,158.9,158.87,22.0296]
[1723188798731,26.67,158.9,158.87,15.7355]
[1723188799247,26.67,158.9,158.88,6.294]
[1723188799644,26.67,158.89,158.88,6.294]